bitfinex/quotes_SOLUSD_20250830
["timestamp","ask_amount","ask_price","bid_price","bid_amount"]
[1756549054418,1e-08,203.46,203.45,10.3198679]
[1756549054618,1e-08,203.46,203.45,5.60521258]
[1756549054828,1e-08,203.46,203.45,10.3198679]
[1756549055027,1e-08,203.46,203.45,26.02753248]
[1756549055334,0.1,203.48,203.46,13.73775558]
[1756549055533,0.1,203.48,203.47,38.38]
[1756549055741,0.1,203.48,203.47,43.09465532]
[1756549056043,0.1,203.48,203.47,45.06446832]
[1756549056547,0.1,203.48,203.47,49.97919776]
[1756549056751,0.1,203.48,203.47,50.66919776]
[1756549057542,0.82,203.48,203.47,6.88454244]
[1756549057743,0.82,203.48,203.47,1.969813]
[1756549058132,0.82,203.48,203.47,6.88454244]
[1756549058830,0.1,203.48,203.47,12.28919776]
[1756549059029,0.1,203.48,203.47,49.97919776]
[1756549059460,0.1,203.48,203.47,50.66919776]
[1756549061542,0.72,203.56,203.47,62.95602137]
[1756549061848,0.72,203.56,203.53,4.71465532]
[1756549062051,0.72,203.56,203.54,38.36]
[1756549062254,0.72,203.56,203.54,43.07465532]
[1756549062557,0.72,203.56,203.55,14.771412]
[1756549063062,4.71465532,203.58,203.55,14.771412]
[1756549063252,4.71465532,203.58,203.55,19.68404848]
[1756549063460,0.72,203.57,203.55,19.68404848]
[1756549063648,0.72,203.56,203.55,19.68404848]
[1756549063834,4.71465532,203.59,203.55,19.68404848]
[1756549064040,0.72,203.58,203.55,19.68404848]
[1756549064373,0.72,203.57,203.55,19.68404848]
[1756549064542,0.72,203.57,203.55,4.91263648]
[1756549064868,0.72,203.57,203.56,38.36]
[1756549065172,0.72,203.57,203.56,58.04251449]
[1756549065958,0.72,203.59,203.56,19.68251449]
[1756549066168,0.72,203.58,203.56,19.68251449]
[1756549066338,0.72,203.57,203.56,4.91255649]
[1756549066968,0.72,203.57,203.56,19.68251449]
[1756549067672,0.72,203.59,203.56,19.68251449]
[1756549067870,0.72,203.58,203.56,19.68251449]
[1756549068070,0.72,203.58,203.56,4.91255649]
[1756549068271,0.72,203.58,203.57,4.714656]
[1756549068570,5.43465532,203.61,203.57,47.98697117]
[1756549068748,0.72,203.61,203.57,47.98697117]
[1756549068942,0.72,203.6,203.57,43.27231517]
[1756549069267,4.71465532,203.61,203.58,14.769231]
[1756549069445,5.43465532,203.61,203.58,14.769231]
[1756549069642,0.72,203.61,203.57,43.27231517]
[1756549069968,0.72,203.61,203.57,48.67697049]
[1756549070174,0.72,203.61,203.59,19.68087414]
[1756549070376,0.72,203.65,203.6,43.07465532]
[1756549070667,4.71465532,203.66,203.61,5.40465532]
[1756549070855,4.71465532,203.67,203.62,39.05]
[1756549071167,0.72,203.66,203.62,43.76465532]
[1756549071572,26.72,203.68,203.63,14.76487]
[1756549071758,0.72,203.67,203.63,14.76487]
[1756549071948,0.72,203.67,203.62,43.07465532]
[1756549072149,5.43465532,203.67,203.63,4.91086775]
[1756549072353,0.72,203.67,203.64,14.764869]
[1756549072550,5.43465532,203.67,203.63,4.91086775]
[1756549073046,5.49465532,203.67,203.63,4.91086775]
[1756549073854,4.71465532,203.66,203.63,4.91086775]
[1756549074048,4.71465532,203.64,203.58,0.69]
[1756549074255,5.43465532,203.64,203.59,43.07465532]
[1756549074450,5.43465532,203.63,203.59,43.2718326]
[1756549074653,4.71465532,203.64,203.6,0.69]
[1756549074856,4.71465532,203.65,203.6,5.40465532]
[1756549075051,0.72,203.64,203.6,20.17097832]
[1756549075358,5.43465532,203.64,203.6,14.766323]
[1756549075668,5.43465532,203.64,203.59,47.98648792]
[1756549075977,0.72,203.63,203.6,4.714655]
[1756549076170,4.71465532,203.64,203.6,9.62621567]
[1756549076371,5.43465532,203.64,203.6,9.62621567]
[1756549076569,5.43465532,203.64,203.6,10.31621567]
[1756549076878,4.71465532,203.65,203.6,14.34087099]
[1756549077050,4.71465532,203.65,203.61,0.69]
[1756549077245,4.71465532,203.65,203.62,0.69]
[1756549077451,0.72,203.65,203.61,38.36]
[1756549077664,4.71465532,203.65,203.61,38.36]
[1756549077874,5.43465532,203.65,203.61,39.05]
[1756549078059,5.43465532,203.65,203.62,4.91110892]
[1756549078380,4.71465532,203.65,203.62,5.60110892]
[1756549078872,4.71465532,203.63,203.6,4.714655]
[1756549079083,5.43465532,203.63,203.6,38.34]
[1756549079288,4.71465532,203.63,203.6,39.03]
[1756549079970,0.72,203.66,203.6,39.03]
[1756549080274,4.71465532,203.63,203.6,0.69]
[1756549080478,4.71465532,203.63,203.6,5.60158423]
[1756549081556,4.71465532,203.61,203.58,19.67895523]
[1756549081879,5.37465532,203.62,203.58,58.72895523]
[1756549082065,4.71465532,203.62,203.58,58.72895523]
[1756549082583,4.71465532,203.6,203.58,14.76705]
[1756549082874,0.66,203.6,203.57,4.91228811]
[1756549083081,4.71465532,203.59,203.57,4.91228811]
[1756549083665,26.0,203.62,203.55,20.38966392]
[1756549083666,4.71465532,203.58,203.55,20.38966392]
[1756549083872,4.71465532,203.58,203.55,5.62261392]
[1756549084186,4.71465532,203.59,203.56,5.62233649]
[1756549084479,26.66,203.61,203.56,4.91233649]
[1756549084662,4.71465532,203.58,203.55,14.769958]
[1756549085183,4.71465532,203.58,203.55,15.479958]
[1756549085693,4.71465532,203.56,203.51,5.62376345]
[1756549085890,5.37465532,203.56,203.53,14.771412]
[1756549086066,4.71465532,203.55,203.53,14.771412]
[1756549086467,5.37465532,203.54,203.53,14.771412]
[1756549086666,0.66,203.54,203.5,0.03]
[1756549086888,4.71465532,203.52,203.5,4.94393115]
[1756549087780,4.71465532,203.52,203.5,0.03]
[1756549088680,4.71465532,203.51,203.5,0.03]
[1756549088987,5.37465532,203.51,203.5,0.03]
[1756549091386,19.1124109,203.51,203.5,0.03]
[1756549091601,23.82706622,203.51,203.5,0.03]
[1756549091772,19.1124109,203.51,203.5,0.03]
[1756549091974,28.74082967,203.51,203.5,0.03]
[1756549092391,67.10082967,203.51,203.5,0.03]
[1756549092580,57.67151903,203.51,203.5,0.03]
[1756549092780,67.10082967,203.51,203.5,0.03]
[1756549093991,26.0,203.48,203.47,0.03]
[1756549094199,30.71465532,203.48,203.47,0.03]
[1756549094499,31.37465532,203.48,203.47,0.03]
[1756549098000,0.66,203.55,203.47,0.74]
[1756549098303,2.5706585,203.58,203.47,0.74]
[1756549098304,4.71465532,203.52,203.47,7.42466232]
[1756549098490,4.71465532,203.51,203.48,0.71]
[1756549098692,4.71465532,203.52,203.48,0.71]
[1756549099296,4.71465532,203.52,203.5,4.91400491]
[1756549099605,4.71465532,203.52,203.5,5.62400491]
[1756549102282,4.71465532,203.51,203.5,0.71]
[1756549103293,4.71465532,203.52,203.5,5.62400491]
[1756549103499,4.71465532,203.53,203.51,0.71]
[1756549103907,4.71465532,203.53,203.51,5.62368816]
[1756549104606,4.71465532,203.52,203.51,0.71]
[1756549105716,4.71465532,203.52,203.49,7.424662]
[1756549105906,4.71465532,203.52,203.5,0.71]
[1756549108920,4.71465532,203.52,203.48,0.71]
[1756549108921,4.71465532,203.51,203.48,0.71]
[1756549109130,26.0,203.53,203.48,5.62437782]
[1756549109295,30.71465532,203.53,203.49,0.71]
[1756549109486,4.71465532,203.53,203.49,0.71]
[1756549109692,4.71465532,203.53,203.5,0.71]
[1756549109999,26.66,203.55,203.5,0.71]
[1756549110303,4.71465532,203.52,203.5,0.71]
[1756549110511,4.77465532,203.52,203.5,0.71]
[1756549110727,0.06,203.52,203.5,0.71]
[1756549110904,4.77465532,203.52,203.5,0.71]
[1756549111113,4.77465532,203.52,203.49,4.91407518]
[1756549111412,4.77465532,203.52,203.49,5.60407518]
[1756549111999,4.71465532,203.51,203.47,5.63455944]
[1756549112228,4.71465532,203.51,203.48,0.69]
[1756549113220,0.06,203.52,203.47,16.57332544]
[1756549113535,0.06,203.52,203.49,0.69]
[1756549113706,4.71465532,203.51,203.48,4.91433053]
[1756549114031,4.71465532,203.51,203.48,5.60433053]
[1756549114205,4.71465532,203.51,203.48,4.91433053]
[1756549114600,4.71465532,203.51,203.48,0.69]
[1756549115202,4.71465532,203.51,203.49,0.69]
[1756549115907,26.06,203.52,203.49,0.69]
[1756549116110,30.77465532,203.52,203.49,0.69]
[1756549116314,4.77465532,203.52,203.49,5.60416761]
[1756549117020,5.43465532,203.52,203.49,4.91416761]
[1756549117213,4.71465532,203.51,203.49,4.91416761]
[1756549117728,4.71465532,203.51,203.48,4.91447812]
[1756549117915,4.71465532,203.51,203.48,5.60447812]
[1756549118515,26.06,203.52,203.48,4.91447812]
[1756549118851,4.71465532,203.51,203.49,0.69]
[1756549119136,0.06,203.52,203.49,5.60421938]
[1756549119311,4.77465532,203.52,203.49,5.60421938]
[1756549120230,0.06,203.52,203.49,5.60421938]
[1756549120638,4.77465532,203.52,203.49,5.60421938]
[1756549121031,5.43465532,203.52,203.47,21.97792088]
[1756549121219,5.43465532,203.52,203.48,0.69]
[1756549121814,4.77465532,203.52,203.49,0.69]
[1756549126026,0.06,203.52,203.49,0.69]
[1756549126232,4.77465532,203.52,203.49,0.69]
[1756549126754,5.43465532,203.52,203.49,0.69]
[1756549127140,5.43465532,203.52,203.47,17.26345555]
[1756549127351,5.43465532,203.52,203.47,10.34934487]
[1756549127635,5.43465532,203.52,203.48,0.69]
[1756549127835,4.71465532,203.51,203.48,0.69]
[1756549128837,4.71465532,203.51,203.49,0.03]
[1756549130453,0.72,203.52,203.49,0.03]
[1756549130653,4.71465532,203.51,203.49,0.03]
[1756549132658,0.06,203.52,203.49,0.03]
[1756549132862,0.06,203.52,203.5,0.69]
[1756549133048,0.06,203.52,203.49,4.74465532]
[1756549133364,0.06,203.52,203.51,5.63469]
[1756549133745,0.06,203.52,203.51,4.94469]
[1756549135062,31.43465532,203.52,203.49,0.03]
[1756549135262,4.71465532,203.5,203.49,0.03]
[1756549135949,4.71465532,203.51,203.49,0.03]
[1756549137162,30.77465532,203.52,203.49,0.72]
[1756549137459,30.77465532,203.52,203.49,0.03]
[1756549137650,30.77465532,203.52,203.5,9.689086]
[1756549138366,30.77465532,203.52,203.49,5.63409974]
[1756549138668,30.77465532,203.52,203.49,15.32318574]
[1756549138967,4.71465532,203.5,203.49,0.03]
[1756549139161,26.06,203.52,203.49,0.03]
[1756549139373,4.71465532,203.51,203.49,0.03]
[1756549140071,26.72,203.52,203.49,0.03]
[1756549140270,4.71465532,203.51,203.49,0.03]
[1756549140445,26.72,203.52,203.49,0.03]
[1756549140644,4.71465532,203.5,203.49,0.03]
[1756549142769,31.97737861,203.5,203.49,0.03]
[1756549143092,31.97737861,203.5,203.47,0.03]
[1756549143093,13.73775558,203.48,203.47,0.03]
[1756549143377,25.91627649,203.48,203.47,0.03]
[1756549143669,26.49119712,203.48,203.47,0.03]
[1756549144179,31.40568503,203.48,203.47,0.03]
[1756549146943,31.40568503,203.48,203.46,0.03]
[1756549147167,46.39312437,203.47,203.46,0.03]
[1756549147365,60.13087995,203.47,203.45,0.03]
[1756549147573,8.75312437,203.46,203.45,0.03]
[1756549148407,27.40585095,203.46,203.45,0.03]
[1756549149893,65.76585095,203.46,203.45,0.03]
[1756549151296,46.39312437,203.46,203.45,0.03]
[1756549151999,43.07465532,203.46,203.45,0.03]
[1756549152700,47.09616846,203.46,203.45,0.03]
[1756549153184,47.98962632,203.46,203.45,0.03]
[1756549153786,52.01071592,203.46,203.45,0.03]
[1756549153978,51.29071592,203.46,203.45,0.03]
[1756549154179,52.01036896,203.46,203.45,0.03]
[1756549154376,51.29036896,203.46,203.45,0.03]
[1756549154982,51.31036896,203.46,203.45,0.03]
[1756549156078,12.93036896,203.46,203.45,0.03]
[1756549156279,48.00962632,203.46,203.45,0.03]
[1756549156700,61.7473819,203.46,203.45,0.03]
[1756549157115,24.0873819,203.46,203.45,0.03]
[1756549157280,62.4673819,203.46,203.45,0.03]
[1756549157817,14.45775558,203.46,203.45,0.03]
[1756549158017,69.07465532,203.46,203.45,0.75]
[1756549158208,69.07465532,203.46,203.45,0.03]
[1756549159791,68.57465532,203.46,203.45,0.03]
[1756549160505,30.21465532,203.46,203.45,0.75]
[1756549160715,68.57465532,203.46,203.45,0.75]
[1756549161090,68.57465532,203.46,203.45,0.03]
[1756549161598,30.21465532,203.46,203.45,0.75]
[1756549161796,131.6,203.5,203.45,0.75]
[1756549162111,64.36,203.49,203.45,0.75]
[1756549162316,4.71465532,203.47,203.45,0.75]
[1756549164543,43.07465532,203.48,203.45,0.75]
[1756549165003,4.71465532,203.47,203.45,0.75]
[1756549167230,69.07465532,203.49,203.45,5.66518107]
[1756549167411,69.07465532,203.49,203.46,0.72]
[1756549167609,30.71465532,203.49,203.46,0.72]
[1756549167811,38.36,203.5,203.46,0.72]
[1756549168127,4.71465532,203.49,203.46,0.72]
[1756549168311,38.36,203.5,203.47,4.91472944]
[1756549168630,4.71465532,203.49,203.48,0.72]
[1756549168832,43.07465532,203.5,203.49,0.72]
[1756549170027,43.07465532,203.5,203.46,0.72]
[1756549170330,4.71465532,203.48,203.47,0.72]
[1756549170532,4.71465532,203.48,203.45,0.03]
[1756549170728,4.71465532,203.47,203.46,0.72]
[1756549170918,4.71465532,203.47,203.45,0.03]
[1756549171112,4.71465532,203.46,203.45,0.03]
[1756549171627,4.71465532,203.46,203.45,0.72]
[1756549172134,20.0,203.42,203.41,0.03]
[1756549172311,39.73775558,203.37,203.36,0.03]
[1756549172512,98.17896618,203.37,203.36,0.03]
[1756549173028,100.15120618,203.37,203.36,0.03]
[1756549173622,30.71465532,203.34,203.33,0.03]
[1756549173823,106.22613955,203.34,203.33,0.03]
[1756549174335,113.33021337,203.34,203.33,0.03]
[1756549174726,94.67458625,203.34,203.33,0.03]
[1756549175242,87.83058998,203.34,203.33,0.03]
[1756549175918,92.74846152,203.34,203.33,0.03]
[1756549176114,38.04973322,203.34,203.33,0.72]
[1756549176524,3.66753895,203.34,203.33,0.72]
[1756549176739,4.71465532,203.35,203.33,0.72]
[1756549177846,4.13074226,203.35,203.33,0.72]
[1756549178634,4.13074226,203.35,203.33,5.63810554]
[1756549178920,4.71465532,203.37,203.34,0.69]
[1756549179149,26.0,203.39,203.34,0.69]
[1756549179333,7.32354602,203.38,203.34,0.69]
[1756549179656,26.0,203.39,203.34,0.69]
[1756549179657,8.37642833,203.37,203.34,0.69]
[1756549179953,4.71465532,203.37,203.34,0.69]
[1756549180126,4.71465532,203.37,203.34,5.6076521]
[1756549180333,4.71465532,203.37,203.34,4.9176521]
[1756549180632,4.71465532,203.37,203.35,0.69]
[1756549181020,4.71465532,203.38,203.35,0.69]
[1756549181343,52.21559401,203.47,203.35,0.69]
[1756549181344,4.71465532,203.37,203.35,0.69]
[1756549181541,4.71465532,203.37,203.36,4.917653]
[1756549181835,4.71465532,203.4,203.36,5.607653]
[1756549182043,3.66262391,203.39,203.37,0.69]
[1756549182340,43.51570674,203.43,203.36,4.917653]
[1756549182341,4.71465532,203.41,203.38,0.69]
[1756549182643,7.3267769,203.4,203.39,0.69]
[1756549183143,3.66338845,203.4,203.39,5.40465532]
[1756549183443,26.0,203.43,203.39,0.69]
[1756549183659,7.32813324,203.42,203.39,0.69]
[1756549183959,3.66406662,203.41,203.39,0.69]
[1756549184122,30.71465532,203.43,203.39,0.69]
[1756549184123,30.71465532,203.43,203.39,5.60663906]
[1756549184323,7.32972098,203.42,203.4,0.69]
[1756549184554,3.66486079,203.41,203.39,4.91663906]
[1756549184725,30.71465532,203.43,203.39,4.91663906]
[1756549184924,7.33044242,203.42,203.39,4.91663906]
[1756549185239,3.66522121,203.41,203.4,0.69]
[1756549185435,3.66522121,203.41,203.37,4.91714608]
[1756549185642,30.71465532,203.43,203.39,4.71465532]
[1756549185844,7.331091,203.42,203.39,4.71465532]
[1756549186045,3.6655455,203.41,203.4,0.69]
[1756549186259,3.6655455,203.41,203.39,4.71465532]
[1756549186435,30.71465532,203.43,203.39,4.917146]
[1756549186643,12.04637082,203.42,203.39,4.917146]
[1756549186846,7.3317155,203.41,203.39,0.69]
[1756549187044,3.66585775,203.4,203.38,4.917146]
[1756549187265,3.66808224,203.39,203.38,4.917146]
[1756549187757,3.66808224,203.39,203.38,5.607146]
[1756549188263,3.66781835,203.39,203.38,5.607146]
[1756549189944,3.66781835,203.39,203.38,10.32180132]
[1756549190544,3.66816122,203.39,203.38,10.32180132]
[1756549191068,3.66816122,203.39,203.38,5.607146]
[1756549191365,3.66816122,203.39,203.38,10.52405031]
[1756549191768,3.66816122,203.39,203.38,15.23870563]
[1756549191955,26.0,203.43,203.38,15.23870563]
[1756549192149,7.33566046,203.42,203.39,5.40465532]
[1756549192465,26.0,203.43,203.4,0.69]
[1756549192637,3.66769917,203.42,203.41,4.71465532]
[1756549192843,26.06,203.47,203.41,5.40465532]
[1756549193058,12.04968192,203.46,203.42,0.69]
[1756549193262,7.3350266,203.45,203.42,0.69]
[1756549193561,7.3350266,203.44,203.43,0.69]
[1756549197570,7.3350266,203.44,203.41,10.32069585]
[1756549197868,3.6675133,203.43,203.42,0.69]
[1756549198865,26.06,203.47,203.42,0.69]
[1756549199047,0.06,203.44,203.42,0.69]
[1756549199249,3.66692641,203.43,203.42,0.69]
[1756549199472,3.66692641,203.43,203.42,5.60593746]
[1756549200356,3.66692641,203.43,203.41,4.91616298]
[1756549200561,0.06,203.44,203.41,9.6308183]
[1756549200865,3.66648324,203.43,203.41,10.3208183]
[1756549201042,0.06,203.44,203.41,0.69]
[1756549201247,3.66648354,203.43,203.36,17.00812046]
[1756549201443,12.04821286,203.42,203.38,4.71465532]
[1756549201647,3.66677877,203.41,203.39,0.69]
[1756549201878,4.71465532,203.43,203.39,0.69]
[1756549202171,7.33355574,203.42,203.39,0.69]
[1756549202371,3.66677787,203.41,203.4,0.69]
[1756549203262,4.71465532,203.42,203.4,0.69]
[1756549203876,4.71465532,203.42,203.38,10.32138446]
[1756549204069,4.71465532,203.42,203.39,0.69]
[1756549204377,4.71465532,203.42,203.4,0.69]
[1756549204870,4.71465532,203.42,203.37,4.91713372]
[1756549205071,4.71465532,203.42,203.38,5.40465532]
[1756549205271,4.71465532,203.42,203.39,0.69]
[1756549205655,4.71465532,203.42,203.38,4.71465532]
[1756549205853,4.71465532,203.42,203.39,0.69]
[1756549206575,4.71465532,203.4,203.35,0.72]
[1756549206763,4.71465532,203.38,203.35,0.72]
[1756549206970,26.0,203.41,203.35,0.72]
[1756549206971,8.38115343,203.37,203.35,0.72]
[1756549207172,4.71465532,203.37,203.35,0.72]
[1756549208962,8.38242225,203.36,203.35,0.03]
[1756549209158,12.05048804,203.36,203.35,0.03]
[1756549209479,53.77159581,203.36,203.35,0.03]
[1756549209976,67.50935139,203.36,203.35,0.03]
[1756549210674,72.42673927,203.36,203.35,0.03]
[1756549212071,72.42610888,203.36,203.35,0.03]
[1756549218873,39.73775558,203.34,203.33,0.03]
[1756549219074,93.48662799,203.34,203.33,0.03]
[1756549219582,98.4042769,203.34,203.33,0.03]
[1756549219978,13.73775558,203.33,203.32,0.03]
[1756549220177,33.80085423,203.33,203.32,0.03]
[1756549221181,38.71896764,203.33,203.32,0.03]
[1756549221374,38.71896764,203.33,203.31,0.03]
[1756549221684,10.63378801,203.32,203.31,0.03]
[1756549221883,12.04733556,203.32,203.31,0.03]
[1756549222391,12.04733556,203.32,203.31,0.72]
[1756549222582,8.38099544,203.32,203.31,0.72]
[1756549222760,4.91739052,203.36,203.31,0.72]
[1756549222761,13.59559401,203.4,203.31,5.43465532]
[1756549222962,13.59559401,203.38,203.32,0.69]
[1756549223264,4.71465532,203.33,203.32,0.69]
[1756549223470,8.37807159,203.33,203.32,0.69]
[1756549224476,4.71465532,203.34,203.32,0.69]
[1756549224799,69.17465532,203.35,203.32,0.69]
[1756549225096,3.66306578,203.34,203.32,0.69]
[1756549225268,69.17465532,203.35,203.32,0.69]
[1756549225471,3.66290527,203.34,203.32,0.69]
[1756549225672,30.71465532,203.35,203.32,0.69]
[1756549225964,3.66290545,203.34,203.32,0.69]
[1756549226277,26.0,203.35,203.32,0.69]
[1756549226463,4.71465532,203.36,203.32,5.60832596]
[1756549226663,3.66277382,203.35,203.33,0.69]
[1756549226882,4.71465532,203.36,203.33,0.69]
[1756549227284,4.71465532,203.35,203.33,0.69]
[1756549227496,4.71465532,203.35,203.31,0.03]
[1756549227793,26.0,203.35,203.34,0.69]
[1756549227998,29.6627486,203.35,203.34,0.69]
[1756549228873,34.37740392,203.35,203.33,0.69]
[1756549229061,8.37740392,203.34,203.33,0.69]
[1756549229264,3.6627486,203.34,203.33,0.69]
[1756549229489,8.37740392,203.34,203.33,0.69]
[1756549229692,8.37756628,203.34,203.33,0.69]
[1756549232988,3.66291096,203.34,203.33,0.69]
[1756549233193,4.71465532,203.36,203.33,5.60811341]
[1756549233393,3.66329739,203.35,203.34,0.71]
[1756549236316,3.72329739,203.35,203.34,0.71]
[1756549236481,8.43795271,203.35,203.34,0.71]
[1756549237998,8.43795271,203.35,203.32,0.74]
[1756549238193,3.66329739,203.34,203.32,0.03]
[1756549238396,38.4,203.33,203.32,0.03]
[1756549238610,74.72612447,203.33,203.32,0.03]
[1756549239612,79.64423788,203.33,203.32,0.03]
[1756549240511,74.59125898,203.33,203.32,0.03]
[1756549242190,63.81859375,203.33,203.32,0.03]
[1756549242490,42.26674398,203.33,203.32,0.74]
[1756549242717,72.9813993,203.33,203.32,0.74]
[1756549242901,46.9813993,203.33,203.32,0.03]
[1756549243304,72.9813993,203.33,203.32,0.03]
[1756549244198,76.28599429,203.33,203.32,0.03]
[1756549246502,81.2041077,203.33,203.32,0.03]
[1756549246703,42.6041077,203.33,203.32,0.03]
[1756549246918,76.22599429,203.33,203.32,0.03]
[1756549250903,36.64894852,203.33,203.32,0.03]
[1756549251102,79.88360384,203.33,203.32,0.03]
[1756549251300,79.89765051,203.33,203.32,0.03]
[1756549252233,79.89775248,203.33,203.32,0.03]
[1756549252405,84.81586589,203.33,203.32,0.03]
[1756549253422,72.55362147,203.33,203.32,0.03]
[1756549254234,34.09362147,203.33,203.32,0.03]
[1756549254402,72.55362147,203.33,203.32,0.03]
[1756549256618,4.71465532,203.32,203.31,0.03]
[1756549256830,15.37775248,203.32,203.31,0.03]
[1756549258532,20.29610778,203.32,203.31,0.03]
[1756549259231,24.28120159,203.32,203.31,0.03]
[1756549259635,38.01895717,203.32,203.31,0.03]
[1756549259936,39.73775558,203.3,203.29,0.2]
[1756549260137,98.25016338,203.3,203.29,0.2]
[1756549260304,13.73775558,203.29,203.24,0.91]
[1756549260506,26.0,203.26,203.25,0.74]
[1756549260808,75.08309716,203.26,203.25,0.74]
[1756549261227,29.30289927,203.26,203.25,0.74]
[1756549261434,53.80210061,203.26,203.25,0.74]
[1756549261824,53.80210043,203.26,203.25,0.74]
[1756549262131,15.38210043,203.26,203.25,0.74]
[1756549262321,53.80210043,203.26,203.25,0.74]
[1756549263024,15.38210043,203.26,203.25,0.74]
[1756549263227,58.72190757,203.26,203.25,0.03]
[1756549263426,20.30190757,203.26,203.25,0.03]
[1756549263616,58.72190757,203.26,203.25,0.03]
[1756549264829,15.38210043,203.26,203.25,0.7]
[1756549265037,53.80210043,203.26,203.25,0.7]
[1756549266725,15.38210043,203.26,203.25,0.7]
[1756549266913,53.80210043,203.26,203.25,0.7]
[1756549267916,15.37678409,203.26,203.25,0.7]
[1756549268233,10.66212877,203.26,203.25,0.7]
[1756549268442,6.6392295,203.26,203.25,10.33470452]
[1756549268734,43.13465532,203.3,203.25,5.6200492]
[1756549268919,6.98521647,203.29,203.26,0.67]
[1756549269114,43.13465532,203.3,203.26,0.67]
[1756549269115,3.67631267,203.28,203.26,0.67]
[1756549269337,3.67631267,203.27,203.26,0.67]
[1756549270429,3.67631267,203.27,203.26,5.58980714]
[1756549271448,3.67689876,203.27,203.26,5.58980714]
[1756549272342,3.6774945,203.27,203.26,5.58980714]
[1756549272522,3.6774945,203.27,203.26,0.67]
[1756549273850,50.12277648,203.27,203.25,0.03]
[1756549274146,8.39214982,203.26,203.25,0.03]
[1756549274321,46.81214982,203.26,203.25,0.03]
[1756549274715,46.81214982,203.26,203.25,0.7]
[1756549276125,50.12348528,203.26,203.25,0.7]
[1756549279071,50.12348528,203.26,203.25,0.03]
[1756549279254,55.76329242,203.26,203.25,0.03]
[1756549280551,59.44477592,203.26,203.25,0.03]
[1756549280762,55.76728142,203.26,203.25,0.03]
[1756549281348,54.27030986,203.26,203.25,0.03]
[1756549281552,50.12747428,203.26,203.25,0.03]
[1756549281740,76.12747428,203.26,203.25,0.03]
[1756549282256,37.70840305,203.26,203.25,0.03]
[1756549282559,76.12840305,203.26,203.25,0.03]
[1756549283242,50.12840305,203.26,203.25,0.03]
[1756549283757,55.04821019,203.26,203.25,0.03]
[1756549284062,55.76821019,203.26,203.25,0.03]
[1756549284363,59.91104577,203.26,203.25,0.03]
[1756549284547,21.49104577,203.26,203.25,0.03]
[1756549284750,59.91104577,203.26,203.25,0.03]
[1756549285541,59.19104577,203.26,203.25,0.03]
[1756549285738,11.13658331,203.26,203.25,0.03]
[1756549285942,45.41332735,203.26,203.25,0.7]
[1756549286180,50.12798267,203.26,203.25,0.7]
[1756549287660,6.99332735,203.26,203.25,5.6200492]
[1756549289367,50.12798267,203.26,203.25,0.7]
[1756549289662,50.18798267,203.26,203.25,0.7]
[1756549290359,46.50599078,203.26,203.25,0.7]
[1756549290941,46.50599078,203.26,203.25,0.03]
[1756549291149,72.50599078,203.26,203.25,0.03]
[1756549291356,91.10658194,203.26,203.25,0.03]
[1756549292463,70.02638908,203.26,203.25,0.03]
[1756549292842,65.31173376,203.26,203.25,0.03]
[1756549293048,70.02638908,203.26,203.25,0.03]
[1756549293761,26.7435535,203.26,203.25,0.03]
[1756549293967,60.24374636,203.26,203.25,0.03]
[1756549298471,60.24798377,203.26,203.25,0.03]
[1756549298871,65.88779091,203.26,203.24,0.2]
[1756549299056,39.59559401,203.23,203.22,0.03]
[1756549299256,96.73719091,203.23,203.22,0.03]
[1756549299469,97.45719091,203.23,203.22,0.03]
[1756549301076,102.37772429,203.23,203.22,0.03]
[1756549302783,18.65877324,203.21,203.2,0.03]